Cogmind - Beta 10.1 *** ADVENTURER MODE // 2020.10.25 @ 21:22:36 Player: darlorth Result: Destroyed by D-53 Grenadier with Mini Grenade Launcher Performance ------------- Evolutions (0) 0 Regions Visited (2) 400 Robots Destroyed (4) 20 Value Destroyed (52) 52 Prototype IDs (0) 0 Alien Tech Used (0) 0 Bonus (0) 0 TOTAL SCORE: 472 Bonus ------- None Cogmind --------- Core Integrity 0/250 Matter 300/300 Energy 100/100 System Corruption 0% Temperature Cool (0) Movement Core (550) Ox10 Location -10/Mines Parts ------- > --- POWER (1) -------- (None) > --- PROPULSION (2) --- (None) > --- UTILITY (2) ------ Large Storage Unit Large Storage Unit > --- WEAPON (2) ------- (None) > --- INVENTORY (16) --- Ion Engine Sensor Array Thief Drone Bay EM Pulse Gun Peak State ------------ > --- POWER ------------ Light Ion Engine > --- PROPULSION ------- Light Treads Light Treads > --- UTILITY ---------- Large Storage Unit Large Storage Unit > --- WEAPON ----------- Medium Laser Assault Rifle > --- INVENTORY -------- Ion Engine Sensor Array Thief Drone Bay EM Pulse Gun Light Assault Rifle [Rating: 8] Favorites ----------- Power Light Ion Engine Engine Light Ion Engine Propulsion Light Treads Treads Light Treads Utility Large Storage Unit Storage Large Storage Unit Processor Signal Interpreter Weapon Assault Rifle Energy Gun Medium Laser Ballistic Gun Assault Rifle Build | -11 -10 -10 ------- Run | Scr Mat Min Slots Evolved . | . . . Power . | . . . Propulsion . | . . . Utility . | . . . Weapon . | . . . Parts Attached 9 | 5 3 1 Power 1 | 1 . . Engine 1 | 1 . . Core . | . . . Reactor . | . . . Propulsion 2 | 2 . . Treads 2 | 2 . . Leg . | . . . Wheel . | . . . Hover . | . . . Flight . | . . . Utility 3 | . 3 . Device . | . . . Storage 2 | . 2 . Processor 1 | . 1 . Hackware . | . . . Protection . | . . . Artifact . | . . . Weapon 3 | 2 . 1 Energy Gun 1 | 1 . . Energy Cannon . | . . . Ballistic Gun 2 | 1 . 1 Ballistic Cannon . | . . . Launcher . | . . . Special Weapon . | . . . Impact Weapon . | . . . Slashing Weapon . | . . . Piercing Weapon . | . . . Special Melee Weapon . | . . . Unidentified Prototypes . | . . . Parts Lost 6 | . . 6 Power 1 | . . 1 Propulsion 2 | . . 2 Utility . | . . . Weapon 3 | . . 3 Highest Loss Streak 5 | . . 5 Average Slot Usage (%) 91 | . 90 93 Engine 13 | . 14 12 Treads 27 | . 28 25 Storage 18 | . 11 28 Processor 4 | . 7 . Energy Gun 12 | . 14 9 Ballistic Gun 14 | . 14 16 Naked Turns . | . . . Heaviest Build 39 | 7 39 39 Greatest Support 40 | 40 40 40 Greatest Overweight (x) 11 | 1 . 11 Average Overweight (x) . | . . . Largest Inventory Capacity 16 | 4 16 16 Average Capacity 10 | 4 9 16 Most Carried 5 | 3 3 5 Average Carried 2 | 1 2 3 Final Capacity 16 | 4 16 16 Final Carried 4 | 2 3 4 Class Distribution -------------------- 100% | Mutant Dominant Class ---------------- Mutant | -10/Materials Mutant | -10/Mines Resources | -11 -10 -10 ----------- Run | Scr Mat Min Matter Collected 303 | 246 33 24 Remotely . | . . . Salvage Created 57 | . 33 24 Parts 11 | . 7 4 Haulers Intercepted . | . . . Recyclers Shooed . | . . . Parts Field Recycled . | . . . Retrieved Matter . | . . . Parts Self-Destructed . | . . . Prevented . | . . . Kills | -11 -10 -10 ------- Run | Scr Mat Min Combat Hostiles Destroyed 2 | . . 2 Guns 2 | . . 2 Classes Destroyed 2 | . 1 1 Watcher 2 | . 2 . Swarmer 2 | . . 2 Best Kill Streak 2 | . 1 2 Combat Bots Only 2 | . . 2 Max Kills in Single Turn 1 | . 1 1 Gunslinging . | . . . Exploded . | . . . Melee . | . . . Uniques/NPCs Destroyed . | . . . Combat | -11 -10 -10 -------- Run | Scr Mat Min Damage Taken 919 | . . 919 Core 254 | . . 254 Absorbed by Shields . | . . . Core Remaining (%) 100 | 100 . . Volleys Fired 11 | . 7 4 Largest 2 | . 2 2 Hottest 70 | . 70 70 Shots Fired 22 | . 14 8 Gun 22 | . 14 8 Cannon . | . . . Launcher . | . . . Special . | . . . Kinetic 11 | . 7 4 Thermal 11 | . 7 4 Explosive . | . . . Electromagnetic . | . . . Robot Hit Streak 7 | . 7 4 Robot Miss Streak 1 | . 1 1 Penetration Max . | . . . Secondary Targets . | . . . Shots Hit Robots 16 | . 11 5 Core Hits 5 | . 3 2 Critical Hits . | . . . Critical Kills . | . . . Critical Parts Destroyed . | . . . Melee Attacks . | . . . Impact . | . . . Slashing . | . . . Piercing . | . . . Sneak Attacks . | . . . Combat Hostiles . | . . . Follow-up Attacks . | . . . Damage Inflicted 206 | . 133 73 Guns 202 | . 129 73 Cannons . | . . . Explosions . | . . . Melee . | . . . Ramming 4 | . 4 . Kinetic 88 | . 53 35 Thermal 114 | . 76 38 Explosive . | . . . Electromagnetic . | . . . Impact . | . . . Slashing . | . . . Piercing . | . . . Highest Corruption . | . . . Average Corruption . | . . . Corruption Purged . | . . . Overload Shots . | . . . Overflow Damage . | . . . Projectiles . | . . . Explosions . | . . . Melee . | . . . Knockbacks . | . . . Impact . | . . . Kinetic . | . . . Secondary . | . . . Self-Inflicted Damage . | . . . Shots . | . . . Rammed 1 | . 1 . Targets Rammed 1 | . 1 . Kicked . | . . . Crushed . | . . . Highest Temperature 27 | . 18 27 Average Temperature 10 | . 8 12 Received Heat Transfer . | . . . Siege Activations . | . . . Robots Corrupted . | . . . Combat Hostiles . | . . . Parts Fried . | . . . Impact Corruptions . | . . . Robots Melted . | . . . Combat Hostiles . | . . . Parts Melted . | . . . Heat Transferred 333 | . 222 111 Parts Sabotaged . | . . . Parts Stolen . | . . . Parts Stripped . | . . . Power Chain Reactions . | . . . Missiles Intercepted . | . . . Alert | -11 -10 -10 ------- Run | Scr Mat Min Peak Influence 64 | . 44 64 Initial 14 | . . 14 Average 23 | . 17 39 Maximum Alert Level . | . . . Low Security (%) 100 | 100 100 100 Level 1 . | . . . Level 2 . | . . . Level 3 . | . . . Level 4 . | . . . Level 5 . | . . . High Security . | . . . Max Security . | . . . Squads Dispatched . | . . . Investigation . | . . . Extermination . | . . . Reinforcement . | . . . Assault . | . . . Garrison . | . . . Intercept . | . . . Construction Impeded . | . . . Haulers Reinforced . | . . . Stealth | -11 -10 -10 --------- Run | Scr Mat Min Distress Signals . | . . . Communications Jammed . | . . . Distress Signals . | . . . Times Spotted 27 | . 4 23 Peak Tracking Total 22 | . 1 22 Tactical Retreats 1 | . . 1 Traps | -11 -10 -10 ------- Run | Scr Mat Min Traps Triggered . | . . . Indirectly . | . . . Trap Hack Attempts . | . . . Triggered . | . . . Disarmed . | . . . Reprogrammed . | . . . Reused . | . . . Traps Extracted . | . . . Installed . | . . . Triggered . | . . . Machines | -11 -10 -10 ---------- Run | Scr Mat Min Machines Disabled . | . . . Max in Single Turn . | . . . Machines Sabotaged . | . . . Garrisons Compromised . | . . . Overloaded Fab Kills . | . . . Fab Network Shutdowns . | . . . Hacking | -11 -10 -10 --------- Run | Scr Mat Min Machines Accessed 1 | . . 1 Terminals . | . . . Fabricators . | . . . Repair Stations . | . . . Recycling Units . | . . . Scanalyzers . | . . . Garrison Access . | . . . Total Hacks 1 | . . 1 Successful 1 | . . 1 Failed . | . . . Catastrophic . | . . . Database Lockouts . | . . . Manual . | . . . Terminals . | . . . Fabricators . | . . . Repair Stations . | . . . Recycling Units . | . . . Scanalyzers . | . . . Garrison Access . | . . . Terminal Hacks 1 | . . 1 Open Door 1 | . . 1 Fabricator Hacks . | . . . Repair Station Hacks . | . . . Recycling Unit Hacks . | . . . Scanalyzer . | . . . Garrison Access Hacks . | . . . Unauthorized Hacks . | . . . Terminals . | . . . Fabricators . | . . . Repair Stations . | . . . Recycling Units . | . . . Scanalyzers . | . . . Garrison Access . | . . . Data Cores Recovered . | . . . Used . | . . . Hacking Detections . | . . . Full Trace Events . | . . . Feedback Events . | . . . Feedback Blocked . | . . . Robot Schematics Acquired . | . . . Robots Built . | . . . Matter . | . . . Time . | . . . Total Robot Build Rating . | . . . Part Schematics Acquired . | . . . Parts Built . | . . . Matter . | . . . Time . | . . . Total Part Build Rating . | . . . Parts Repaired . | . . . Time . | . . . Parts Recycled . | . . . Recycled Matter . | . . . Retrieved Matter . | . . . Retrieved Components . | . . . Parts Scanalyzed . | . . . Part Schematics Acquired . | . . . Parts Damaged . | . . . Bothacking | -11 -10 -10 ------------ Run | Scr Mat Min Used RIF Installer . | . . . Robots Hacked . | . . . Non-combat . | . . . Combat . | . . . Robot Hacks Applied . | . . . Relay Couplers Released . | . . . Robots Rewired . | . . . Allies Hacked . | . . . Hacks Repelled . | . . . Allies | -11 -10 -10 -------- Run | Scr Mat Min Total Allies . | . . . Largest Group . | . . . Highest-Rated Group . | . . . Highest-Rated Ally . | . . . Total Orders . | . . . Ally Attacks . | . . . Total Damage . | . . . Kills . | . . . Allies Corrupted . | . . . Allies Melted . | . . . Intel | -11 -10 -10 ------- Run | Scr Mat Min Robot Analysis Total . | . . . Derelict Logs Recovered 1 | . . 1 Drone Launches . | . . . Drone Recoveries . | . . . Exploration | -11 -10 -10 ------------- Run | Scr Mat Min Turns Passed 527 | 65 267 195 Spaces Moved 296 | 42 149 105 Core 18 | 15 . 3 Treads 278 | 27 149 102 Legs . | . . . Wheels . | . . . Hover . | . . . Flight . | . . . Fastest Speed 50 | 50 160 160 Average Speed 160 | 129 160 172 Slowest Speed 600 | 160 160 600 Overloaded Moves . | . . . Propulsion Burnouts . | . . . Robots Hopped . | . . . Cave-ins Triggered . | . . . Exploration Rate (%) 20 | 5 29 26 Regions Visited 2 Branch Regions 1 Pre-discovered Areas . | . . . Known Exits Taken . | . . . Unknown Exits Taken 2 | 1 1 . Scrap Searched . | . . . Spaces Dug . | . . . Terrain Destroyed . | . . . Melee . | . . . Projectile . | . . . AOE . | . . . Terrain Rammed . | . . . Walls Destroyed . | . . . Machines Disabled . | . . . Actions | -11 -10 -10 --------- Run | Scr Mat Min Total 328 | 53 163 112 Wait . | . . . Move 294 | 41 148 105 Hop . | . . . Pick Up 13 | 7 4 2 Fast Attach . | . . . Attach 8 | 5 2 1 Detach . | . . . Swap 1 | . 1 . Drop . | . . . Fire 11 | . 7 4 Melee . | . . . Ram . | . . . Kick . | . . . Crush 1 | . 1 . Escape Stasis . | . . . Rewire . | . . . Trap . | . . . Miscellaneous . | . . . Route ------- -11/Scrapyard -10/Materials -10/Mines History --------- Turn | Location | Event 2 | -11/Scrapyard | Met Revision 17 3 | -11/Scrapyard | Discovered new exit (range 16) 66 | -11/Scrapyard | Entered Materials 301 | -10/Materials | Build established: Mutant 317 | -10/Materials | Discovered new exit (range 7) 333 | -10/Materials | Entered Mines 421 | -10/Mines | Found the Drone Emporium 427 | -10/Mines | Found Prototype Device 439 | -10/Mines | Learned Materials interactive machine intel 446 | -10/Mines | Assembled infested the area 451 | -10/Mines | Assisted by a Guerilla fighting off Assembled 517 | -10/Mines | Core integrity fell below 50% 519 | -10/Mines | Core integrity fell below 20% 528 | -10/Mines | Destroyed by D-53 Grenadier with Mini Grenade Launcher Last Messages --------------- 00484_ The unstable cave ceiling collapses. 00487_ U-05 Engineer lays Concrete. 00493_ The unstable cave ceiling collapses. 00505_ Lgt. Treads destroyed. 00506_ Lgt. Ion Engine destroyed. 00509_ The unstable cave ceiling collapses. 00509_ K-01 Serf collects debris. 00512_ Lgt. Treads destroyed. 00512_ Lgt. Assault Rifle destroyed. 00513_ The unstable cave ceiling collapses. 00514_ Assault Rifle destroyed. 00515_ The unstable cave ceiling collapses. 00515_ U-05 Engineer lays Concrete. 00516_ K-01 Serf collects debris. 00518_ The unstable cave ceiling collapses. 00520_ K-01 Serf collects debris. 00524_ The unstable cave ceiling collapses. 00526_ U-05 Engineer lays Concrete. 00526_ K-01 Serf collects debris. 00528_ The unstable cave ceiling collapses. Map ----- +----------------------------------------------------+ | ????????????????????????????????????? #??# ?? | | ?????????????????????????????????????? ## ?? | | ?????????????????????????????????????? ??? | | ?????????????????????????????????????? #??? | | ??????????????????????????????????????? ???? | | ??????????????????????????????????????? ????? | | ???????????????????????????????????????# ????? | | ??????????????????????????????????????# ? ??? | | ?????????????????????????????????????? % # ???? | | ????????????????????????????#########? #???? | | ???????????????????????????? ##""""## % ##??? | | ????????????????????????????# #" # % #??? | | ???????????????????????????? #" % #??? | | ????????????????????????????# ## #???? | | ????????????????????????????# ## # ###???? | | ????????????????????????????# # %= #???? | | ???????????????????????????## = #???? | | ???????????????????#??????## ### #???? | | ???????????????????# ????##% r ##??? | | ????????????######## ##### ###? | | ???????????? k # ## | | ???????????? % #### # | | ??????????????######## ###??# ### | | ????????????????????# #????# ##??# | | ????????????????????# #?????# #????? | | ????????????????????# @ ##????# ##????? | | ????????????????????# # ##???# #??????# | | ????????????????????# ##??# #??????? | | ????????????????????# # #### ##??????? | | ????????????????????# ##??###??? | | ????????????????????## # ## # #?# ##?? | | ?????????????????????## ## ##? | | ??????????????????????## # # # #? | | ???????????????????????# dd # #? | | ???????????????????????## #? | | ????????????????????????## ##? | | ?????????????????????????### # # ##?? | | ???????????????????????????## ## # #??? | | ????????????????????????????####?##### #?? | | ????????????????????????????????????# #?? | | ????????????????????????????????????# ##?? | | ????????????????????????????????????## #######??? | | ?????????????????????????????????????####????????? | | ?????????????????????????????????????????????????? | | | | | | | | | | | | | +----------------------------------------------------+ Best States ------------- Heat Dissipation 25 Energy Generation 10 Energy Capacity 125 Matter Stores 300 Matter Capacity 300 Sight Range 16 Terrain Scan Density 10 Resistance: KI 20 Resistance: TH 20 Resistance: EX 20 Resistance: EM 20 Resistance: I 20 Resistance: S 20 Resistance: P 20 Evasion (%) 40 Recoil Reduction 2 Offensive Hacking 10 Item Schematics ----------------- None Robot Schematics ------------------ None Fabricated ------------ Nothing Alien Tech Used ----------------- None Achievements -------------- None Challenges ------------ None Game ------ Seed RagnarokAngularWarhead Manual? 0 Play Time 00:06:48 Cumulative 122.9 hours Start 2020.10.25 @ 21:17:47 End 2020.10.25 @ 21:22:36 Sessions 1 Manual Loads 0 Difficulty Adventurer Special Mode None Game No. 154 Rogue 102 Adventurer 9 Explorer 43 Win Type - Total 2 Types 1/0/1/0/0/0/0/0/0 Lore% 27 Gallery% 58 Achievement% 48 Wizard Run 0 Options --------- ASCII 0 Keyboard 0 Movement Mouse Keybinds 0 Fullscreen 1 Font 12/Smallcaps Map View 83x54 Tactical HUD 1 Map Filters NONE Filters NONE Steam 1 RUN: c8ceb78e-afa1-445e-8876-9c9150b574bd